bitfinex-derivatives/quotes_BTCF0:USTF0_20250504
["timestamp","ask_amount","ask_price","bid_price","bid_amount"]
[1746369219913,0.365793,95555.0,95554.0,0.25805171]
[1746369220918,0.313793,95555.0,95554.0,0.25805171]
[1746369221116,0.365793,95555.0,95554.0,0.25805171]
[1746369221821,0.398693,95555.0,95554.0,0.25805171]
[1746369224721,0.346693,95555.0,95554.0,0.25805171]
[1746369224926,0.345793,95555.0,95554.0,0.28805171]
[1746369225227,0.345793,95555.0,95554.0,0.26805171]
[1746369226016,0.245793,95555.0,95554.0,0.26805171]
[1746369226826,0.0801534,95561.0,95556.0,0.0523223]
[1746369227125,0.2894367,95561.0,95560.0,0.2092821]
[1746369227326,0.2894367,95561.0,95560.0,0.3992821]
[1746369228027,0.0801534,95561.0,95560.0,0.3992821]
[1746369228220,0.2092737,95564.0,95563.0,0.2092733]
[1746369228420,0.2092737,95564.0,95563.0,0.3592733]
[1746369228621,0.2092737,95564.0,95563.0,0.4511733]
[1746369229022,0.2092737,95564.0,95563.0,0.4211733]
[1746369229226,0.2092737,95564.0,95563.0,0.5391733]
[1746369229731,0.2122737,95564.0,95563.0,0.5391733]
[1746369230434,0.1068712,95580.0,95579.0,0.2092405]
[1746369230621,0.1068712,95580.0,95579.0,0.7600405]
[1746369230925,0.1068712,95580.0,95579.0,0.7200405]
[1746369231124,0.1068712,95580.0,95579.0,0.8380405]
[1746369231624,0.1118712,95580.0,95579.0,0.8994405]
[1746369231829,0.1168712,95580.0,95579.0,0.8994405]
[1746369232731,0.3261095,95580.0,95579.0,0.8994405]
[1746369233024,0.2192383,95580.0,95579.0,0.8994405]
[1746369234231,0.2192383,95580.0,95579.0,0.7547505]
[1746369235731,0.2142383,95580.0,95579.0,0.7547505]
[1746369237029,0.2102383,95580.0,95579.0,0.7547505]
[1746369237221,0.2102383,95580.0,95579.0,0.3939505]
[1746369237422,0.2102383,95580.0,95579.0,0.5439505]
[1746369237730,0.2112383,95580.0,95579.0,0.5439505]
[1746369237931,0.2112383,95580.0,95579.0,0.3939505]
[1746369238121,0.2419383,95580.0,95579.0,0.3939505]
[1746369238432,0.2419383,95580.0,95579.0,0.5539505]
[1746369238929,0.2419383,95580.0,95579.0,0.3939505]
[1746369240138,0.2419383,95580.0,95579.0,0.2759505]
[1746369242734,0.2419383,95580.0,95579.0,0.4159505]
[1746369243336,0.2419383,95580.0,95579.0,0.2759505]
[1746369243524,0.2419383,95580.0,95579.0,0.4059505]
[1746369244737,0.2419383,95580.0,95579.0,0.2759505]
[1746369244933,0.2419383,95580.0,95579.0,0.4159505]
[1746369248536,0.2429383,95580.0,95579.0,0.4159505]
[1746369248929,0.2419383,95580.0,95579.0,0.4159505]
[1746369249137,0.2429383,95580.0,95579.0,0.4159505]
[1746369249534,0.2409383,95580.0,95579.0,0.4159505]
[1746369249735,0.2419383,95580.0,95579.0,0.4159505]
[1746369250337,0.2409383,95580.0,95579.0,0.4359505]
[1746369250537,0.2419383,95580.0,95579.0,0.4159505]
[1746369251329,0.2419383,95580.0,95579.0,0.4459505]
[1746369251531,0.2419383,95580.0,95579.0,0.4159505]
[1746369252642,0.2419383,95580.0,95579.0,0.20671]
[1746369253642,0.2419383,95580.0,95579.0,0.4159505]
[1746369255544,0.2419383,95580.0,95579.0,0.3852505]
[1746369259434,0.2419383,95580.0,95579.0,0.3545505]
[1746369268450,0.2419383,95580.0,95579.0,0.3872505]
[1746369282168,0.0327,95580.0,95579.0,0.3872505]
[1746369282370,0.0314,95585.0,95581.0,0.052309]
[1746369282572,0.2406273,95585.0,95584.0,0.2092295]
[1746369282870,0.2406273,95585.0,95584.0,0.35979271]
[1746369283462,0.2406273,95585.0,95584.0,1.85979271]
[1746369283662,0.2426273,95585.0,95584.0,1.85979271]
[1746369283974,0.2426273,95585.0,95584.0,1.65056321]
[1746369284265,0.3596273,95585.0,95584.0,1.65056321]
[1746369284469,0.3616273,95585.0,95584.0,1.65056321]
[1746369284669,0.3616273,95585.0,95584.0,1.85979271]
[1746369285170,0.2436273,95585.0,95584.0,1.85979271]
[1746369285576,0.3081273,95585.0,95584.0,1.85979271]
[1746369286067,0.4261273,95585.0,95584.0,1.85979271]
[1746369286571,0.4261273,95585.0,95584.0,1.86510271]
[1746369287175,0.3081273,95585.0,95584.0,1.86510271]
[1746369288071,0.0979,95585.0,95584.0,1.86510271]
[1746369288460,0.0979,95585.0,95584.0,0.36510271]
[1746369288674,0.3071273,95585.0,95584.0,0.36510271]
[1746369288975,0.3061273,95585.0,95584.0,0.36510271]
[1746369289476,0.3061273,95585.0,95584.0,0.42650271]
[1746369290264,0.3071273,95585.0,95584.0,0.42650271]
[1746369290668,0.0979,95585.0,95584.0,0.42650271]
[1746369290976,0.0969,95585.0,95584.0,0.42650271]
[1746369294579,0.0969,95585.0,95584.0,0.28650271]
[1746369295876,0.0969,95585.0,95584.0,0.29650271]
[1746369296582,0.3061273,95585.0,95584.0,0.29650271]
[1746369297379,0.3061273,95585.0,95584.0,0.31650271]
[1746369297571,0.3061273,95585.0,95584.0,0.29650271]
[1746369298882,0.3061273,95585.0,95584.0,0.31650271]
[1746369299275,0.3061273,95585.0,95584.0,0.29650271]
[1746369299474,0.0969,95585.0,95584.0,0.29650271]
[1746369299882,0.0959,95585.0,95584.0,0.29650271]
[1746369300083,0.0969,95585.0,95584.0,0.29650271]
[1746369300283,0.3061273,95585.0,95584.0,0.29650271]
[1746369300781,0.0969,95585.0,95584.0,0.31650271]
[1746369301472,0.3061273,95585.0,95584.0,0.29650271]
[1746369301675,0.0969,95585.0,95584.0,0.29650271]
[1746369302384,0.3061273,95585.0,95584.0,0.29650271]
[1746369304579,0.3061273,95585.0,95584.0,1.79650271]
[1746369305884,0.0969,95585.0,95584.0,1.79650271]
[1746369306185,0.0969,95585.0,95584.0,1.82650271]
[1746369307191,0.0969,95585.0,95584.0,1.79650271]
[1746369307988,0.0969,95585.0,95584.0,1.81650271]
[1746369308587,0.0959,95585.0,95584.0,1.81650271]
[1746369308787,0.0969,95585.0,95584.0,1.81650271]
[1746369308994,0.0969,95585.0,95584.0,1.79650271]
[1746369309889,0.0969,95585.0,95584.0,1.81650271]
[1746369310483,0.0969,95585.0,95584.0,1.79650271]
[1746369310975,0.3061273,95585.0,95584.0,1.79650271]
[1746369311886,0.0959,95585.0,95584.0,1.79650271]
[1746369312188,0.3061273,95585.0,95584.0,1.79650271]
[1746369312389,0.3061273,95585.0,95584.0,1.7553395]
[1746369315190,0.3061273,95585.0,95584.0,1.7453395]
[1746369321896,0.3061273,95585.0,95584.0,0.2453395]
[1746369328296,0.3061273,95585.0,95584.0,0.2769395]
[1746369333003,0.0969,95585.0,95584.0,0.2769395]
[1746369333206,0.0969,95585.0,95584.0,0.4269395]
[1746369333410,0.3061273,95585.0,95584.0,0.4269395]
[1746369333802,0.3061273,95585.0,95584.0,0.4569395]
[1746369334109,0.0969,95585.0,95584.0,0.4569395]
[1746369334309,0.3061273,95585.0,95584.0,0.4569395]
[1746369334904,0.3061273,95585.0,95584.0,0.4269395]
[1746369335602,0.3061273,95585.0,95584.0,0.4469395]
[1746369336609,0.3061273,95585.0,95584.0,0.4153395]
[1746369336801,0.3061273,95585.0,95584.0,0.4480395]
[1746369337597,0.3061273,95585.0,95584.0,0.4280395]
[1746369337808,0.3061273,95585.0,95584.0,1.9280395]
[1746369338308,0.3061273,95585.0,95584.0,1.8945395]
[1746369338610,0.4061273,95585.0,95584.0,1.50531]
[1746369339113,0.5241273,95585.0,95584.0,1.50531]
[1746369339811,0.5241273,95585.0,95584.0,1.7145395]
[1746369341415,0.4241273,95585.0,95584.0,1.7145395]
[1746369345208,0.2149,95585.0,95584.0,1.7145395]
[1746369345603,0.2149,95585.0,95584.0,1.7797395]
[1746369346112,0.0969,95585.0,95584.0,1.7797395]
[1746369347616,0.118,95594.0,95593.0,0.2092098]
[1746369348409,0.118,95594.0,95593.0,0.28759303]
[1746369348614,0.3272076,95594.0,95593.0,0.28759303]
[1746369349716,0.3292076,95594.0,95593.0,0.28759303]
[1746369350415,0.3312076,95594.0,95593.0,0.2721098]
[1746369350717,0.3312076,95594.0,95593.0,0.2773998]
[1746369353820,0.122,95594.0,95593.0,0.2773998]
[1746369354116,0.3312076,95594.0,95593.0,0.2773998]
[1746369354313,0.3627076,95594.0,95593.0,0.29273442]
[1746369355320,0.1535,95594.0,95593.0,0.44273442]
[1746369356314,0.1515,95594.0,95593.0,0.4273998]
[1746369356623,0.1515,95594.0,95593.0,0.2773998]
[1746369356915,0.08000142,95604.0,95599.0,0.2091967]
[1746369356916,0.1,95600.0,95599.0,0.2091967]
[1746369357120,0.08000142,95604.0,95603.0,0.2091879]
[1746369357318,0.08000142,95604.0,95603.0,0.22521022]
[1746369357623,0.08000142,95604.0,95603.0,0.37521022]
[1746369358117,0.08000142,95604.0,95603.0,0.43731022]
[1746369358621,0.0015,95605.0,95604.0,0.2091858]
[1746369358825,0.0015,95605.0,95604.0,0.36520812]
[1746369359117,0.0015,95605.0,95604.0,0.43830812]
[1746369359623,0.0015,95605.0,95604.0,0.42830812]
[1746369359827,0.0015,95605.0,95604.0,0.42811647]
[1746369360325,0.2749836,95605.0,95604.0,0.22501647]
[1746369360624,0.0061,95605.0,95604.0,0.22501647]
[1746369361125,0.1241,95605.0,95604.0,0.22501647]
[1746369361315,0.1865,95605.0,95604.0,0.2091858]
[1746369361920,0.1849,95605.0,95604.0,0.2091858]
[1746369362428,0.1849,95605.0,95604.0,0.2416858]
[1746369364619,0.3940836,95605.0,95604.0,0.2416858]
[1746369364815,0.4940836,95605.0,95604.0,0.2416858]
[1746369365030,0.3956836,95605.0,95604.0,0.2416858]
[1746369365235,0.3940836,95605.0,95604.0,0.2416858]
[1746369365741,0.3956836,95605.0,95604.0,0.2416858]
[1746369366130,0.4940836,95605.0,95604.0,0.2416858]
[1746369366340,0.3956836,95605.0,95604.0,0.2416858]
[1746369366633,0.4940836,95605.0,95604.0,0.2416858]
[1746369366835,0.3956836,95605.0,95604.0,0.2416858]
[1746369367746,0.3955836,95605.0,95604.0,0.2416858]
[1746369367940,0.4477836,95605.0,95604.0,0.2416858]
[1746369368639,0.3955836,95605.0,95604.0,0.2416858]
[1746369369037,0.4940836,95605.0,95604.0,0.2416858]
[1746369369237,0.4477836,95605.0,95604.0,0.2416858]
[1746369369737,0.4462836,95605.0,95604.0,0.2416858]
[1746369370246,0.3955836,95605.0,95604.0,0.2416858]
[1746369370940,0.4940836,95605.0,95604.0,0.2416858]
[1746369374645,0.4940836,95605.0,95604.0,0.2469758]
[1746369378453,0.4462836,95605.0,95604.0,0.2469758]
[1746369378645,0.8070836,95605.0,95604.0,0.2469758]
[1746369380143,0.7548836,95605.0,95604.0,0.2469758]
[1746369380338,0.8070836,95605.0,95604.0,0.2469758]
[1746369380645,0.4462836,95605.0,95604.0,0.2469758]
[1746369381749,0.4462836,95605.0,95604.0,0.2802758]
[1746369383142,0.4139836,95605.0,95604.0,0.2802758]
[1746369383349,0.3617836,95605.0,95604.0,0.2802758]
[1746369383751,0.4139836,95605.0,95604.0,0.2802758]
[1746369385050,0.3632836,95605.0,95604.0,0.2802758]
[1746369386238,0.4139836,95605.0,95604.0,0.2802758]
[1746369386441,0.3632836,95605.0,95604.0,0.2802758]
[1746369387041,0.3934836,95605.0,95604.0,0.2802758]
[1746369387241,0.4442836,95605.0,95604.0,0.2802758]
[1746369387441,0.3934836,95605.0,95604.0,0.2802758]
[1746369388150,0.4457836,95605.0,95604.0,0.2802758]
[1746369388349,0.4441836,95605.0,95604.0,0.2802758]
[1746369388550,0.4457836,95605.0,95604.0,0.2802758]
[1746369388743,0.4442836,95605.0,95604.0,0.2802758]
[1746369388943,0.7542836,95605.0,95604.0,0.2802758]
[1746369389542,0.8527836,95605.0,95604.0,0.2802758]
[1746369390355,0.8049836,95605.0,95604.0,0.2802758]
[1746369392257,0.8527836,95605.0,95604.0,0.2802758]
[1746369392454,0.8049836,95605.0,95604.0,0.2802758]
[1746369393346,0.7542836,95605.0,95604.0,0.2802758]
[1746369393549,0.7240836,95605.0,95604.0,0.2802758]
[1746369393759,0.4139836,95605.0,95604.0,0.2802758]
[1746369393962,0.3617836,95605.0,95604.0,0.2802758]
[1746369394262,0.4139836,95605.0,95604.0,0.2802758]
[1746369395046,0.3617836,95605.0,95604.0,0.2802758]
[1746369395251,0.4154836,95605.0,95604.0,0.2802758]
[1746369395762,0.4139836,95605.0,95604.0,0.2802758]
[1746369396763,0.4617836,95605.0,95604.0,0.2802758]
[1746369397061,0.3632836,95605.0,95604.0,0.2802758]
[1746369397263,0.3608,95612.0,95611.0,0.2091704]
[1746369397461,0.3629,95612.0,95611.0,0.2091704]
[1746369398054,0.3629,95612.0,95611.0,0.2748704]
[1746369398563,0.3659,95612.0,95611.0,0.2748704]
[1746369398950,0.3689,95612.0,95611.0,0.2748704]
[1746369399165,0.0081,95612.0,95611.0,0.2748704]
[1746369400462,0.0081,95612.0,95611.0,0.28542338]
[1746369401456,0.0081,95612.0,95611.0,0.29070338]
[1746369403068,0.0061,95612.0,95611.0,0.29070338]
[1746369404573,0.0051,95612.0,95611.0,0.29070338]
[1746369405769,0.00528826,95612.0,95611.0,0.29070338]
[1746369405971,0.00528826,95612.0,95611.0,0.35658338]
[1746369408057,0.00528826,95612.0,95611.0,1.85658338]
[1746369414478,0.00528826,95612.0,95611.0,1.79070338]
[1746369414777,0.00528826,95612.0,95611.0,1.85658338]
[1746369416381,0.00318826,95612.0,95611.0,1.85658338]
[1746369420780,0.00318826,95612.0,95611.0,1.96658338]
[1746369422089,0.00318826,95612.0,95611.0,1.93070338]
[1746369422289,0.001,95616.0,95612.0,0.052292]
[1746369422490,0.001,95616.0,95615.0,0.2091617]
[1746369422890,0.001,95616.0,95615.0,1.7091617]
[1746369423077,0.119,95616.0,95615.0,1.7091617]
[1746369423582,0.3301595,95616.0,95615.0,1.7091617]
[1746369423987,0.121,95616.0,95615.0,1.7091617]
[1746369424293,0.123,95616.0,95615.0,1.7091617]
[1746369425283,0.00462336,95616.0,95615.0,1.8191617]
[1746369425685,0.00462336,95616.0,95615.0,1.8244417]
[1746369426189,0.004,95616.0,95615.0,1.8244417]
[1746369426402,0.003,95616.0,95615.0,1.8244417]
[1746369428596,0.0306,95616.0,95615.0,1.8244417]
[1746369428796,0.103,95616.0,95615.0,1.61528]
[1746369429000,0.3121595,95616.0,95615.0,0.00528]
[1746369429189,0.3823595,95616.0,95615.0,0.00528]
[1746369429390,0.4908595,95616.0,95615.0,0.00528]
[1746369429587,0.4430595,95616.0,95615.0,0.00528]
[1746369429897,0.4490595,95616.0,95615.0,0.2144417]
[1746369430094,0.5308595,95616.0,95615.0,0.00528]
[1746369430897,0.5208595,95616.0,95615.0,0.00528]
[1746369431999,0.53111822,95616.0,95615.0,0.00528]
[1746369432593,0.5208595,95616.0,95615.0,0.00528]
[1746369437393,0.4362595,95616.0,95615.0,0.00528]
[1746369437595,0.5208595,95616.0,95615.0,0.00528]
[1746369437902,0.5308595,95616.0,95615.0,0.00528]
[1746369442306,0.2091726,95610.0,95609.0,0.033]
[1746369442502,0.2091989,95598.0,95596.0,0.0307]
[1746369442702,0.6899989,95598.0,95596.0,0.0307]
[1746369443208,0.8079989,95598.0,95596.0,0.0307]
[1746369443708,0.8702989,95598.0,95597.0,0.19357297]
[1746369444714,0.8702989,95598.0,95597.0,0.0344]
[1746369445603,0.8702989,95598.0,95597.0,0.0364]
[1746369451413,0.0523013,95595.0,95589.0,0.2092179]
[1746369451717,0.0622,95594.0,95589.0,0.2292179]
[1746369451908,0.2092186,95590.0,95589.0,0.2292179]
[1746369452109,0.3092186,95590.0,95589.0,0.2292179]
[1746369452505,0.3092186,95590.0,95589.0,1.7292179]
[1746369452815,0.3092186,95590.0,95589.0,1.7372179]
[1746369453215,0.3092186,95590.0,95589.0,1.7332179]
[1746369453606,0.3092186,95590.0,95589.0,1.7372179]
[1746369454507,0.3092186,95590.0,95589.0,1.7672179]
[1746369454809,0.3092186,95590.0,95589.0,1.7982779]
[1746369459718,0.3092186,95590.0,95589.0,1.5891]
[1746369460122,0.4272186,95590.0,95589.0,0.0891]
[1746369460309,0.4589186,95590.0,95589.0,0.0891]
[1746369461915,0.4069186,95590.0,95589.0,0.0891]
[1746369462120,0.4589186,95590.0,95589.0,0.0891]
[1746369464723,0.4900186,95590.0,95589.0,0.0891]
[1746369465323,0.4900186,95590.0,95589.0,0.0691]
[1746369469927,0.8508186,95590.0,95589.0,0.0691]
[1746369470516,0.4900186,95590.0,95589.0,0.0691]
[1746369470820,0.8508186,95590.0,95589.0,0.0691]
[1746369472529,0.8031186,95590.0,95589.0,0.2783186]
[1746369472826,0.8031186,95590.0,95589.0,0.0691]
[1746369473528,0.8508186,95590.0,95589.0,0.0691]
[1746369474524,0.8031186,95590.0,95589.0,0.2783186]
[1746369474731,0.7979186,95590.0,95589.0,0.2783186]
[1746369478835,0.7979186,95590.0,95589.0,0.2703186]
[1746369479028,0.7979186,95590.0,95589.0,0.2743186]
[1746369489347,0.8508186,95590.0,95589.0,0.2743186]
[1746369489544,0.8031186,95590.0,95589.0,0.2743186]
[1746369490744,0.8508186,95590.0,95589.0,0.2743186]
[1746369491043,0.8031186,95590.0,95589.0,0.2743186]
[1746369494447,0.8811186,95590.0,95589.0,0.2432186]
[1746369498147,0.7631186,95590.0,95589.0,0.2432186]
[1746369499147,0.8811186,95590.0,95589.0,0.2432186]
[1746369500236,0.8334186,95590.0,95589.0,0.2432186]
[1746369500443,0.8811186,95590.0,95589.0,0.2432186]
[1746369500950,0.8334186,95590.0,95589.0,0.2432186]
[1746369501248,0.8811186,95590.0,95589.0,0.2432186]
[1746369501649,0.8508186,95590.0,95589.0,0.2432186]
[1746369502151,0.7328186,95590.0,95589.0,0.2432186]
[1746369504150,0.8508186,95590.0,95589.0,0.2432186]
[1746369505343,0.8031186,95590.0,95589.0,0.2432186]
[1746369505550,0.8508186,95590.0,95589.0,0.2432186]
[1746369508255,0.7328186,95590.0,95589.0,0.2432186]
[1746369510055,0.8508186,95590.0,95589.0,0.2432186]
[1746369511155,0.7328186,95590.0,95589.0,0.2432186]
[1746369511351,0.9382186,95590.0,95589.0,0.004]
[1746369511556,0.0523101,95580.0,95575.0,0.2134351]
[1746369511859,0.570047,95576.0,95575.0,0.2134351]
[1746369512051,1.030047,95576.0,95575.0,0.2134351]
[1746369512253,0.209258,95571.0,95570.0,0.00156944]
[1746369512557,0.689258,95571.0,95570.0,0.00156944]
[1746369512749,0.793894,95571.0,95570.0,0.00156944]
[1746369513148,0.975994,95571.0,95570.0,0.00156944]
[1746369514046,0.971994,95571.0,95570.0,0.00156944]
[1746369514249,0.967994,95571.0,95570.0,0.00156944]
[1746369514659,0.967994,95571.0,95570.0,0.00656944]
[1746369515047,0.2042755,95563.0,95562.0,0.2666819]
[1746369515244,1.0750755,95563.0,95562.0,0.2666819]
[1746369515449,0.7050755,95563.0,95562.0,0.2666819]
[1746369515648,1.0550755,95563.0,95562.0,0.2666819]
[1746369515950,0.9175755,95563.0,95562.0,0.2666819]
[1746369516155,0.2092821,95560.0,95559.0,0.0304]
[1746369516346,0.2092908,95556.0,95555.0,0.21033761]
[1746369516549,0.3692908,95556.0,95555.0,0.21033761]
[1746369517157,0.4832908,95556.0,95555.0,0.21033761]
[1746369517760,0.4842908,95556.0,95555.0,0.21633761]
[1746369517960,0.4812908,95556.0,95555.0,0.21633761]
[1746369518858,0.4812908,95556.0,95555.0,0.21933761]
[1746369519555,0.4812908,95556.0,95555.0,0.01004651]
[1746369520558,0.6512908,95556.0,95555.0,0.01004651]
[1746369521961,0.7149908,95556.0,95555.0,0.01004651]
[1746369524155,0.6649908,95556.0,95555.0,0.01004651]
[1746369524356,1.0649908,95556.0,95555.0,0.01004651]
[1746369526370,1.0129908,95556.0,95555.0,0.01004651]
[1746369526573,1.0649908,95556.0,95555.0,0.01004651]
[1746369531192,0.8849908,95556.0,95555.0,0.01004651]
[1746369534095,0.8329908,95556.0,95555.0,0.01004651]
[1746369535001,0.8849908,95556.0,95555.0,0.01004651]
[1746369535705,0.6212908,95556.0,95555.0,0.04274651]
[1746369536004,0.5692908,95556.0,95555.0,0.04274651]
[1746369536202,0.5032908,95556.0,95555.0,0.04274651]
[1746369536696,0.4555908,95556.0,95555.0,0.04274651]
[1746369536899,0.5132908,95556.0,95555.0,0.04274651]
[1746369537097,0.5451908,95556.0,95555.0,0.01004651]
[1746369537304,0.5441908,95556.0,95555.0,0.00404651]
[1746369537500,0.5461908,95556.0,95555.0,0.00104651]
[1746369537693,0.5773908,95556.0,95555.0,0.00104651]
[1746369538295,0.6953908,95556.0,95555.0,0.00104651]
[1746369541006,0.6933908,95556.0,95555.0,0.00104651]
[1746369541301,0.6983908,95556.0,95555.0,0.00204651]
[1746369541504,0.7013908,95556.0,95555.0,0.03314651]
[1746369542805,1.4229908,95556.0,95555.0,0.03314651]
[1746369544908,1.4229908,95556.0,95555.0,0.00304651]
[1746369545794,0.7013908,95556.0,95555.0,0.00304651]
[1746369545996,1.4229908,95556.0,95555.0,0.00304651]
[1746369549111,1.0621908,95556.0,95555.0,0.00304651]
[1746369549312,1.0521908,95556.0,95555.0,0.00304651]
[1746369550610,1.0521908,95556.0,95555.0,0.03524651]
[1746369555316,1.0001908,95556.0,95555.0,0.03524651]
[1746369555708,1.0521908,95556.0,95555.0,0.03524651]
[1746369557920,1.4221908,95556.0,95555.0,0.00304651]
[1746369558216,1.4221908,95556.0,95552.0,0.00156982]
[1746369558217,0.2092974,95553.0,95552.0,0.00156982]
[1746369558416,1.31419814,95553.0,95505.0,0.37296382]
[1746369558716,0.2616347,95536.0,95535.0,0.0657]
[1746369558905,0.8201347,95536.0,95535.0,0.0657]
[1746369559309,0.8191347,95536.0,95535.0,0.0657]
[1746369559615,0.2093566,95526.0,95522.0,0.2093632]
[1746369559820,0.4093566,95526.0,95524.0,0.209359]
[1746369560013,0.2093588,95525.0,95524.0,0.19840584]
[1746369560218,0.2093631,95523.0,95522.0,0.2617051]
[1746369560410,0.2693631,95523.0,95522.0,0.2617051]
[1746369560812,0.2693631,95523.0,95522.0,0.209364]
[1746369561012,0.2693631,95523.0,95522.0,0.239764]
[1746369561213,0.2693631,95523.0,95522.0,0.3577653]
[1746369561411,0.2693631,95523.0,95522.0,0.3903653]
[1746369561916,0.2673631,95523.0,95522.0,0.3903653]
[1746369562226,0.2673631,95523.0,95522.0,0.2723653]
[1746369562813,0.2683631,95523.0,95522.0,0.2723653]
[1746369567626,0.3009631,95523.0,95522.0,0.2723653]
[1746369567819,0.3009631,95523.0,95522.0,0.063]
[1746369568525,0.3009631,95523.0,95522.0,0.2723653]
[1746369570134,0.4009631,95523.0,95522.0,0.2723653]
[1746369572238,0.3532631,95523.0,95522.0,0.2723653]
[1746369572435,0.4009631,95523.0,95522.0,0.2723653]
[1746369572639,0.3206631,95523.0,95522.0,0.2723653]
[1746369572940,0.3683631,95523.0,95522.0,0.2723653]
[1746369575836,0.3206631,95523.0,95522.0,0.2723653]
[1746369576042,0.3094631,95523.0,95522.0,0.2723653]
[1746369576240,0.3399631,95523.0,95522.0,0.2723653]
[1746369576444,0.3399631,95523.0,95522.0,0.3042653]
[1746369577144,0.3988631,95523.0,95522.0,0.3042653]
[1746369583452,0.4008631,95523.0,95522.0,0.3052653]
[1746369585149,0.3408631,95523.0,95522.0,0.4152653]
[1746369586051,0.3103631,95523.0,95522.0,0.4152653]
[1746369587448,0.3415631,95523.0,95522.0,0.4152653]
[1746369588544,0.3723631,95523.0,95522.0,0.4152653]
[1746369600758,0.0972,95523.0,95522.0,0.4152653]
[1746369600959,0.103,95523.0,95522.0,0.4152653]
[1746369601165,0.103,95523.0,95522.0,0.5332653]
[1746369601662,0.0523359,95532.0,95522.0,0.5332653]
[1746369601663,0.3608,95535.0,95534.0,0.209339]
[1746369601962,0.34162732,95540.0,95539.0,0.2093281]
[1746369602162,0.38932732,95540.0,95539.0,0.2093281]
[1746369602559,0.38932732,95540.0,95539.0,0.2756281]
[1746369603466,0.0523,95540.0,95539.0,0.2756281]
[1746369603659,0.3153259,95540.0,95539.0,0.2766281]
[1746369604864,0.3153259,95540.0,95539.0,0.30704843]
[1746369605060,0.3153259,95540.0,95539.0,0.35704843]
[1746369605962,0.2676259,95540.0,95539.0,0.35704843]
[1746369606162,0.3153259,95540.0,95539.0,0.35704843]
[1746369606664,0.2676259,95540.0,95539.0,0.35704843]
[1746369607164,0.3153259,95540.0,95539.0,0.35704843]
[1746369607764,0.3153259,95540.0,95539.0,0.14772033]
[1746369608260,0.2676259,95540.0,95539.0,0.14772033]
[1746369608559,0.3153259,95540.0,95539.0,0.35704843]
[1746369609762,0.3153259,95540.0,95539.0,0.3466281]
[1746369610765,0.3153259,95540.0,95539.0,0.35724249]
[1746369611369,0.3153259,95540.0,95539.0,0.3466281]
[1746369613269,0.3153259,95540.0,95539.0,0.35689878]
[1746369615972,0.3153259,95540.0,95539.0,0.3466281]
[1746369616370,0.2676259,95540.0,95539.0,0.3466281]
[1746369616773,0.3455259,95540.0,95539.0,0.3466281]
[1746369616966,0.2978259,95540.0,95539.0,0.3466281]
[1746369618079,0.3455259,95540.0,95539.0,0.3466281]
[1746369618275,0.2978259,95540.0,95539.0,0.3466281]
[1746369619268,0.3455259,95540.0,95539.0,0.3466281]
[1746369620576,0.2978259,95540.0,95539.0,0.3466281]
[1746369621072,0.3455259,95540.0,95539.0,0.3466281]
[1746369621272,0.2978259,95540.0,95539.0,0.3466281]
[1746369621671,0.3455259,95540.0,95539.0,0.3466281]
[1746369621977,0.2978259,95540.0,95539.0,0.3466281]
[1746369622371,0.3455259,95540.0,95539.0,0.3466281]
[1746369623284,0.2978259,95540.0,95539.0,0.3466281]
[1746369623576,0.3455259,95540.0,95539.0,0.3466281]
[1746369625072,0.3455259,95540.0,95539.0,1.8466281]
[1746369626176,0.2609259,95540.0,95539.0,1.8466281]
[1746369626477,0.3455259,95540.0,95539.0,1.8466281]
[1746369626678,0.2978259,95540.0,95539.0,1.8466281]
[1746369627379,0.3455259,95540.0,95539.0,1.8466281]
[1746369630083,0.2978259,95540.0,95539.0,1.8466281]
[1746369630483,0.3455259,95540.0,95539.0,1.8466281]
[1746369631185,0.2978259,95540.0,95539.0,1.8466281]
[1746369631681,0.3455259,95540.0,95539.0,1.8466281]
[1746369631876,0.2978259,95540.0,95539.0,1.8466281]
[1746369632283,0.3455259,95540.0,95539.0,1.8466281]
[1746369634578,0.3455259,95540.0,95539.0,1.7966281]
[1746369634983,0.2978259,95540.0,95539.0,1.8166281]
[1746369636584,0.3455259,95540.0,95539.0,1.8166281]
[1746369636975,0.2978259,95540.0,95539.0,1.8166281]
[1746369637469,0.3455259,95540.0,95539.0,1.8166281]
[1746369639384,0.2978259,95540.0,95539.0,1.8166281]
[1746369639985,0.3455259,95540.0,95539.0,1.8166281]
[1746369641085,0.0885,95540.0,95539.0,1.8166281]
[1746369641272,0.3608,95545.0,95544.0,0.2093171]
[1746369641477,0.5701149,95545.0,95544.0,0.3593171]
[1746369642172,0.5701149,95545.0,95544.0,0.3926171]
[1746369642578,0.5701149,95545.0,95544.0,0.3936171]
[1746369642780,0.6074149,95545.0,95544.0,0.3936171]
[1746369643887,0.3981,95545.0,95544.0,0.3936171]
[1746369644073,0.3981,95545.0,95544.0,0.4250171]
[1746369646288,0.3678,95545.0,95544.0,0.4250171]
[1746369646490,0.007,95545.0,95544.0,0.7858171]
[1746369651087,0.007,95545.0,95544.0,0.8904811]
[1746369652091,0.007,95545.0,95544.0,1.0084811]
[1746369653491,0.007,95545.0,95544.0,2.5084811]
[1746369654888,0.001,95556.0,95555.0,0.209293]
[1746369655089,0.001,95556.0,95555.0,1.061773]
[1746369655290,0.001,95556.0,95555.0,1.166425]
[1746369655591,0.001,95556.0,95555.0,2.666425]
[1746369655795,0.001,95556.0,95555.0,2.731125]
[1746369655992,0.008,95556.0,95555.0,2.732125]
[1746369657790,0.001,95556.0,95555.0,2.731125]
[1746369657987,0.005,95556.0,95555.0,2.731125]
[1746369661095,0.002,95556.0,95555.0,2.731125]
[1746369664091,0.0633,95569.0,95568.0,0.2092646]
[1746369664296,0.0633,95569.0,95568.0,0.8837046]
[1746369664694,0.0633,95569.0,95568.0,2.3837046]
[1746369664895,0.0633,95569.0,95568.0,2.4452046]
[1746369666001,0.0673,95569.0,95568.0,2.4452046]
[1746369666196,0.0673,95569.0,95568.0,2.4148046]
[1746369666501,0.0987,95569.0,95568.0,2.4148046]
[1746369667599,0.0987,95569.0,95568.0,2.42252374]
[1746369669700,0.0987,95569.0,95568.0,2.43307733]
[1746369673902,0.3608,95593.0,95568.0,2.43307733]
[1746369674100,0.0952,95592.0,95585.0,0.2092273]
[1746369674302,0.0619,95592.0,95585.0,0.9236673]
[1746369674799,0.0619,95592.0,95585.0,0.9548673]
[1746369675004,0.0316,95592.0,95585.0,0.9855673]
[1746369675210,0.0316,95592.0,95585.0,1.1035673]
[1746369675505,0.0316,95592.0,95585.0,2.6035673]
[1746369675801,0.1068712,95604.0,95603.0,0.2091879]
[1746369676101,0.1068712,95604.0,95603.0,0.7636279]
[1746369676604,0.1068712,95604.0,95603.0,2.2636279]
[1746369677207,0.1378712,95604.0,95603.0,2.2960279]
[1746369678198,0.1408712,95604.0,95603.0,2.2960279]
[1746369679408,0.034,95604.0,95603.0,2.2960279]